{"text_format":"1","workbook":"xlsx","n_sheets":1,"sheets":["Org Chart "],"not_rendered":{"charts":0,"images":0,"macros":0,"external_links":0,"defined_names":2,"comments":1,"pivot_tables":0},"unopened":[],"bounds":{"document_bytes":16777216,"sheet_cells":100000,"rows_first":2000,"rows_last":500,"rows_between":2000,"halvings":0,"cell_chars":16384,"cell_head_chars":4096},"cells_cut":0,"cells_raw":0,"read":"whole","date_system":"1900"}

{"sheet":"Org Chart ","index":0,"n_rows":92,"n_cols":72,"rows_kept":92,"cut":false,"hidden":false,"merged":[[99,0,99,2],[27,24,27,29],[27,1,27,4],[43,1,43,2],[45,1,45,2],[70,1,70,2],[34,9,34,12],[29,1,29,2],[39,1,39,2],[40,1,40,4],[41,1,41,2],[30,67,30,72],[29,9,29,10],[27,9,27,10],[28,1,28,4],[65,1,65,2],[46,1,46,4],[42,1,42,4],[44,1,44,4]]}
[]
[]
[]
[null,null,null,null,null,null,null,null,null,null,null,null,null,null,null,null,null,null,null,null,null,null,null,null,null,null,null,null,null,null,null,null,null,null,"Administration & Finance"]
[null,null,null,null,null,null,null,null,null,null,null,null,null,null,null,null,null,null,null,null,null,null,null,null,null,null,null,null,null,null,null,null,null,null,"Vice President"]
[null,null,null,null,null,"The University of Montana-Missoula",null,null,null,null,null,null,null,null,null,null,null,null,null,null,null,null,null,null,null,null,null,null,null,null,null,null,null,null,"Duringer, Robert"]
[null,null,null,null,null,"Facilities Services",null,null,null,null,null,null,null,null,null,null,null,null,null,null,null,null,null,null,null,null,null,null,null,null,null,null,null,null,null,"243-4680"]
[null,null,null,null,null,"Organizational Chart"]
[]
[]
[null,null,null,null,null,null,null,null,null,null,null,null,null,null,null,null,null,null,null,null,null,null,null,null,null,null,null,null,null,null,null,null,null,null,"Facilities Services Director"]
[null,null,null,null,null,null,null,null,null,null,null,null,null,null,null,null,null,null,null,null,null,null,null,null,null,null,null,null,null,null,null,null,null,null,"Director",null,null,null,null,null,null,null,"Administrative Secretary"]
[null,null,null,null,null,null,null,null,null,null,null,null,null,null,null,null,null,null,null,null,null,null,null,null,null,null,null,null,null,null,null,null,null,null,"Jesse, Hugh",null,null,null,null,null,null,null,"Kiernan, Leigh"]
[null,null,null,null,null,null,null,null,null,null,null,null,null,null,null,null,null,null,null,null,null,null,null,null,null,null,null,null,null,null,null,null,null,null,null,"243-2385","080900",1,"FTE",null,null,null,null,"243-2788"]
[null,null,null,null,null,null,null,null,null,null,null,null,null,null,null,null,null,null,null,null,null,null,null,null,null,null,null,null,null,null,null,null,null,null,{"$f":"SUM(AL14+AQ15+AI24+AZ24+BH24+BP24+Q24+Y87)","v":218},"Employees",null,{"$f":"SUM(AL14+AT15+AL24+BC24+BK24+BS24+T24+AB87)","v":168.75},"FTE",null,null,null,1,"Employee","081700",1,"FTE"]
[]
[]
[]
[]
[null,null,null,null,null,null,null,null,null,null,null,null,null,null,null,null,"Associate Director",null,null,null,null,null,null,null,null,null,null,null,null,null,null,null,null,null,"Assistant Director",null,null,null,null,null,null,null,null,null,null,null,null,null,null,null,null,"Associate Director",null,null,null,null,null,null,null,"Assistant Director",null,null,null,null,null,null,null,"Associate Director"]
[null,null,null,null,null,null,null,null,null,null,null,null,null,null,null,null,"Custodial, Grounds, Labor, Recycling/Rental Housing",null,null,null,null,null,null,null,null,null,null,null,null,null,null,null,null,null,"Maintenance",null,null,null,null,null,null,null,"Program Coordinator",null,null,null,null,null,null,null,null,"Planning & Construction",null,null,null,null,null,null,null,"Engineering & Utilities",null,null,null,null,null,null,null,"Fiscal Operations for Facilities Services"]
[null,null,null,null,null,null,null,null,null,null,null,null,null,null,null,null,"Michaud, Gerald \"Frenchy\"",null,null,null,null,null,null,null,null,null,null,null,null,null,null,null,null,null,"O'Neill, Gene",null,null,null,null,null,null,null,null,null,null,null,null,null,null,null,null,"Krebsbach, Kevin",null,null,null,null,null,null,null,"Laura Howe",null,null,null,null,null,null,null,"Schalk, Peggy"]
[null,null,null,null,null,null,null,null,null,null,null,null,null,null,null,null,null,"243-2420","086900",1,"FTE",null,null,null,null,null,null,null,null,null,null,null,null,null,null,"243-6129","084000",1,"FTE",null,null,null,"Florin, James",null,"081550",1,"FTE",null,null,null,null,null,"243-2095","084500",1,"FTE",null,null,null,null,"243-2127","081210",1,"FTE",null,null,null,null,"243-5565","080950",1,"FTE"]
[null,null,null,null,null,null,null,null,null,null,null,null,null,null,null,null,{"$f":"SUM(B32+B68+J32+Y32+Y53+T23)","v":134},"Employees",null,{"$f":"SUM(E32+E68+M32+AB32+AB53+T23)","v":94.2},"FTE",null,null,null,null,null,null,null,null,null,null,null,null,null,{"$f":"SUM(AI68+AI33+AI53+AQ33+AQ61+AL23+AQ25)","v":31},"Employees",null,{"$f":"SUM(AL68+AL33+AL53+AT33+AT61+AL23+AT25)","v":30.75},"FTE",null,null,null,null,null,null,null,null,null,null,null,null,{"$f":"SUM(BC23+AZ33+AZ40+AZ53)","v":8},"Employees",null,{"$f":"SUM(BC23+BC33+BC40+BC53)","v":8},"FTE",null,null,null,{"$f":"SUM(BH31+BH49+BK23)","v":8},"Employees",null,{"$f":"SUM(BK31+BK23+BK49)","v":8},"FTE",null,null,null,{"$f":"SUM(BH56+BP35+BP58+BP73+BS23+BP89+BP29)","v":24},"Employees",null,{"$f":"SUM(BS23+BS35+BS58+BS73+BS89+BK56+BS29)","v":20.85},"FTE"]
[null,null,null,null,null,null,null,null,null,null,null,null,null,null,null,null,null,null,null,null,null,null,null,null,null,null,null,null,null,null,null,null,null,null,null,null,null,null,null,null,null,null,{"$f":"COUNT(AT21:AT24)","v":1},"Employee",null,{"$f":"SUM(AT23:AT24)","v":1},"FTE"]
[null,null,null,null,null,null,null,null,null,null,null,null,null,null,null,null,null,null,null,null,null,null,null,null,null,null,null,null,null,null,null,null,null,null,null,null,null,null,null,null,null,null,null,null,null,null,null,null,null,null,null,null,null,null,null,null,null,null,null,null,null,null,null,null,null,null,null,"Project Accountant"]
[null,null,null,null,null,null,null,null,null,null,null,null,null,null,null,null,null,null,null,null,null,null,null,null,null,null,null,null,null,null,null,null,null,null,null,null,null,null,null,null,null,null,null,null,null,null,null,null,null,null,null,null,null,null,null,null,null,null,null,"Heating Plant",null,null,null,null,null,null,null,"Maxwell, Julie",null,"081400",1,"FTE"]
[null,"College of Technology",null,null,null,null,null,null,null,"Custodial Services",null,null,null,null,null,null,null,null,null,null,null,null,null,null,"Custodial",null,null,null,null,null,null,null,null,null,null,null,null,null,null,null,null,null,null,null,null,null,null,null,null,null,null,"Administrative Assoc. II",null,null,null,null,null,null,null,"Foreman"]
[null,"Maintenance Supervisor III",null,null,null,null,null,null,null,"Supervisor",null,null,null,null,null,null,null,null,null,null,null,null,null,null,"Custodial Supervisor I",null,null,null,null,null,null,null,null,null,"Carpenters",null,null,null,null,null,null,null,"Plumbing & Machine Shop",null,null,null,null,null,null,null,null,null,null,null,null,null,null,null,null,"Burke, Mike",null,null,null,null,null,null,null,{"$f":"COUNT(BS25:BS28)","v":1},"Employee",null,{"$f":"SUM(BS27:BS28)","v":1},"FTE"]
[null,"Kleinjan, Rick",null,null,null,null,null,null,null,"Mondloch, Jack",null,null,null,null,null,null,null,null,null,null,null,null,null,null,"Lemer, Cary",null,null,null,null,null,null,null,null,null,"Foreman",null,null,null,null,null,null,null,"Supervisor",null,null,null,null,null,null,null,null,"Griffin, Dena",null,null,null,null,null,null,null,null,"243-2190","089000",1,"FTE"]
[null,null,"243-7838","097870",1,"FTE",null,null,null,null,"243-2161","086910",1,"FTE",null,null,null,null,null,null,null,null,null,null,null,"243-5747","085400",1,"FTE",null,null,null,null,null,"Gayvert, Art",null,null,null,null,null,null,null,"Grasso, John",null,"084380",null,null,null,null,null,null,null,"243-6061","085000",1,"FTE",null,null,null,{"$f":"SUM(BH42+BK30)","v":6},"Employees",null,{"$f":"SUM(+BK42+BK30)","v":6},"FTE",null,null,null,"Facilities Services Support"]
[null,{"$f":"SUM(B60+B52+E31)","v":9},"Employees",null,{"$f":"SUM(E31+E52+E60)","v":8.5},"FTE",null,null,null,{"$f":"+J38+Q38+M31","v":101},"Employees",null,{"$f":"+M31+M38+T38","v":65},"FTE",null,null,null,null,null,null,null,null,null,null,{"$f":"SUM(+AB31+Y41+Y46)","v":4},"Employees",null,{"$f":"SUM(+AB46+AB41+AB31)","v":3.2},"FTE",null,null,null,null,null,null,"243-6043","082920",1,"FTE",null,null,null,null,"243-6046",null,1,"FTE",null,null,null,null,null,null,null,null,null,null,null,null,null,null,null,null,null,null,null,null,"Accounting Assoc IV"]
[null,null,null,null,null,null,null,null,null,null,null,null,null,null,null,null,null,null,null,null,null,null,null,null,null,null,null,null,null,null,null,null,null,null,{"$f":"SUM(AI44+AL32)","v":5},"Employees",null,{"$f":"SUM(+AL44+AL32)","v":5},"FTE",null,null,null,{"$f":"SUM(AQ42+AQ47+AT32+AQ53)","v":7},"Employees",null,{"$f":"SUM(AT42+AT47+AT32+AT53)","v":6.75},"FTE",null,null,null,null,{"$f":"COUNT(BC30:BC32)","v":1},"Employee",null,{"$f":"SUM(BC31:BC32)","v":1},"FTE",null,null,null,null,null,null,null,null,null,null,null,"Kendall, Steve"]
[null,null,null,null,null,null,null,null,null,null,null,null,null,null,null,null,null,null,null,null,null,null,null,null,null,null,null,null,null,null,null,null,null,null,null,null,null,null,null,null,null,null,null,null,null,null,null,null,null,null,null,null,null,null,null,null,null,null,null,"Heating Plant Engineers",null,null,null,null,null,null,null,null,"243-6121","084630",1,"FTE"]
[null,"College of Technology",null,null,null,null,null,null,null,"Custodial Supervisor II",null,null,null,null,null,null,"Custodial Supervisor II",null,null,null,null,null,null,null,null,null,null,null,null,null,null,null,null,null,null,null,null,null,null,null,null,null,null,null,null,null,null,null,null,null,null,null,null,null,null,null,null,null,null,null,null,null,null,null,null,null,null,{"$f":"SUM(BP43+BP51+BS34)","v":7},"Employees",null,{"$f":"SUM(BS43+BS51+BS34)","v":7},"FTE"]
[null,"Maintenance",null,null,null,null,null,null,null,"Ellingson, Lilia",null,null,null,null,null,null,"Crosby, Dennis",null,null,null,null,null,null,null,null,null,null,null,null,null,null,null,null,null,"Carpenters",null,null,null,null,null,null,null,"Plumbers",null,null,null,null,null,null,null,null,"Architecture & Drafting",null,null,null,null,null,null,null,"Gibbs, Gerald",null,"089300",1,"FTE"]
[null,null,null,null,null,null,null,null,null,null,"243-2161","086920",1,"FTE",null,null,null,"354-2162","085300",1,"FTE",null,null,null,"Wikum, Diane",null,"085700",0.75,"FTE",null,null,null,null,null,null,null,null,null,null,null,null,null,null,null,null,null,null,null,null,null,null,"Campus Architect",null,null,null,null,null,null,null,"Hensell, Ben",null,"089400",1,"FTE"]
[null,"Full Time",null,null,null,null,null,null,null,{"$f":"+M37+J63+J70+J76+M75+J81+M80","v":49},"Employees",null,{"$f":"+M37+M63+M70+M75+M76+M80+M81","v":32.200000000000003},"FTE",null,null,{"$f":"+T37+Q62+Q69+Q75+T74+Q80+T79","v":51},"Employees",null,{"$f":"+T37+T62+T69+T74+T75+T79+T80","v":31.799999999999997},"FTE",null,null,null,"President's Residence/Prescott House",null,null,null,null,null,null,null,null,null,"Dietrich, Steve",null,"082950",1,"FTE",null,null,null,"Batiuk, Hank",null,"084200",1,"FTE",null,null,null,null,"Chaudhry, Jameel",null,null,null,null,null,null,null,"McGee, Dennis",null,"089500",1,"FTE",null,null,null,"Record Keeping Division"]
[null,null,null,null,null,null,null,null,null,null,null,null,null,null,null,null,null,null,null,null,null,null,null,null,"Vacant (v-Laitman)",null,"085490",1,"FTE",null,null,null,null,null,"Overbaugh, Paul - Locksmith",null,"083000",1,"FTE",null,null,null,"Bitterman, Michael",null,"084350",1,"FTE",null,null,null,null,null,"243-5576","081310",1,"FTE",null,null,null,"Robbins, James",null,"089200",1,"FTE"]
[null,"Dufresne, Jerry",null,"097850",1,"FTE",null,null,null,"Custodial Crew",null,null,null,null,null,null,"Custodial Crew",null,null,null,null,null,null,null,null,null,null,null,null,null,null,null,null,null,"Tomicek, Ed",null,"082900",1,"FTE",null,null,null,"Hanson, Richard",null,"084440",1,"FTE",null,null,null,null,{"$f":"SUM(+AZ47+BC39)","v":2},"Employees",null,{"$f":"SUM(BC47+BC39)","v":2},"FTE",null,null,null,"Rowland, D. / Mnt Eng",null,"089050",1,"FTE",null,null,null,"Gibson, Patricia",null,"081630",1,"FTE"]
[null,"Maintenance Worker III",null,null,null,null,null,null,null,null,null,null,null,null,null,null,null,null,null,null,null,null,null,null,{"$f":"COUNT(AB37:AB39)","v":2},"Employees",null,{"$f":"SUM(AB37:AB39)","v":1.75},"FTE",null,null,null,null,null,"Tomicek, Eddie",null,"083050",1,"FTE",null,null,null,"Shields, John",null,"084360",1,"FTE",null,null,null,null,null,null,null,null,null,null,null,null,null,null,null,null,null,null,null,null,"Walker, Dianne",null,"085010",1,"FTE"]
[null,"Maul, Vernon",null,"097880",1,"FTE",null,null,null,"Bartlett, Philip",null,"085650",1,"FTE",null,null,"Allen, Christopher",null,"085350",1,"FTE",null,null,null,"Permanent Part Time",null,null,null,null,null,null,null,null,null,null,null,null,null,null,null,null,null,{"$f":"COUNT(AT37:AT41)","v":4},"Employees",null,{"$f":"SUM(AT38:AT41)","v":4},"FTE",null,null,null,null,"Architecture & Drafting",null,null,null,null,null,null,null,{"$f":"COUNT(BK34:BK40)","v":5},"Employees",null,{"$f":"SUM(BK36:BK40)","v":5},"FTE",null,null,null,"Lake, Cassie",null,"081620",1,"FTE"]
[null,"Maintenance Worker IV",null,null,null,null,null,null,null,"Carruthers, Bettina",null,"116460",1,"FTE",null,null,"Barnier, Cecil",null,"085190",1,"FTE",null,null,null,null,null,null,null,null,null,null,null,null,null,null,null,null,null,null,null,null,null,null,null,null,null,null,null,null,null,null,null,null,null,null,null,null,null,null,null,null,null,null,null,null,null,null,{"$f":"COUNT(BS40:BS42)","v":3},"Employees",null,{"$f":"SUM(BS40:BS42)","v":3},"FTE"]
[null,"Nelson, Fred",null,"097860",1,"FTE",null,null,null,"Castillo, Andrea",null,"086030",1,"FTE",null,null,"Bordell, Charles",null,"085450",1,"FTE",null,null,null,"Corrigan, Maureen",null,"081410",0.45,"FTE",null,null,null,null,null,{"$f":"COUNT(AL37:AL42)","v":4},"Employees",null,{"$f":"SUM(AL37:AL42)","v":4},"FTE",null,null,null,"Permanent Part-time",null,null,null,null,null,null,null,null,"Evanger, Brad",null,"081650",1,"FTE"]
[null,"Maintenance Worker III",null,null,null,null,null,null,null,"Crosby, Aaron",null,"085180",1,"FTE",null,null,"Conway, Darrell",null,"085510",1,"FTE",null,null,null,null,null,null,null,null,null,null,null,null,null,null,null,null,null,null,null,null,null,null,null,null,null,null,null,null,null,null,"Facilities Analyst",null,null,null,null,null,null,null,"Engineering & Utilities"]
[null,"Rodda, William",null,"097920",1,"FTE",null,null,null,"Daniels, Alan",null,"086230",1,"FTE",null,null,"Conway, Lee",null,"085230",1,"FTE",null,null,null,{"$f":"COUNT(AB44:AB45)","v":1},"Part Time",null,{"$f":"SUM(AB44:AB45)","v":0.45},"FTE",null,null,null,null,null,null,null,null,null,null,null,null,null,"Avery, Raymond",null,"087110",0.75,"FTE",null,null,null,null,null,null,null,null,null,null,null,null,"Mechanical Engineer",null,null,null,null,null,null,null,"Campus Stores"]
[null,"Maintenance Worker IV",null,null,null,null,null,null,null,"Daniels, Lois",null,"085220",1,"FTE",null,null,"Crowley, David",null,"086940",1,"FTE",null,null,null,null,null,null,null,null,null,null,null,null,null,null,null,null,null,null,null,null,null,{"$f":"COUNT(AT45:AT46)","v":1},"Employees",null,{"$f":"SUM(AT45:AT46)","v":0.75},"FTE",null,null,null,null,{"$f":"COUNT(BC44:BC46)","v":1},"Employees",null,{"$f":"SUM(BC43:BC46)","v":1},"FTE",null,null,null,"Zimmerman, Alex"]
[null,"Feichtinger, Christoph",null,"097930",1,"FTE",null,null,null,"Davis, Richard",null,"085900",1,"FTE",null,null,"Davis, Bruce",null,"116470",1,"FTE",null,null,null,null,null,null,null,null,null,null,null,null,null,null,null,null,null,null,null,null,null,null,null,null,null,null,null,null,null,null,null,null,null,null,null,null,null,null,null,"243-2144","910020",1,"FTE",null,null,null,"Britton, Jolene",null,"484450",1,"FTE"]
[null,"Maintenance Worker I",null,null,null,null,null,null,null,"Dubois, Morgan",null,"085270",1,"FTE",null,null,"Halcomb, Laurie",null,"085480",1,"FTE",null,null,null,"Grounds",null,null,null,null,null,null,null,null,null,"Painters",null,null,null,null,null,null,null,null,null,null,null,null,null,null,null,null,"Construction Management",null,null,null,null,null,null,null,{"$f":"COUNT(BK41:BK47)","v":1},"Employees",null,{"$f":"BK48","v":1},"FTE",null,null,null,"Morgan, Shawn",null,"084550",1,"FTE"]
[null,"Yackley, Steve",null,"097890",1,"FTE",null,null,null,"Huber, Mike",null,"086220",1,"FTE",null,null,"Harrison, Gail",null,"116490",1,"FTE",null,null,null,"Supervisor I",null,null,null,null,null,null,null,null,null,"Foreman",null,null,null,null,null,null,null,"Machine Shop",null,null,null,null,null,null,null,null,"Senior Project Manager",null,null,null,null,null,null,null,null,null,null,null,null,null,null,null,"Thompson, Patti",null,"085020",1,"FTE"]
[null,"Maintenance Worker I",null,null,null,null,null,null,null,"Lawson, David",null,"085280",1,"FTE",null,null,"Hayes, Steven",null,"086300",1,"FTE",null,null,null,"Chaffee, Rich",null,null,null,null,null,null,null,null,null,"Barba, John",null,null,null,null,null,null,null,null,null,null,null,null,null,null,null,null,"Mulkey, Alan",null,"081660",1,"FTE",null,null,null,null,null,null,null,null,null,null,null,{"$f":"COUNT(BS47:BS50)","v":3},"Employees",null,{"$f":"SUM(BS47:BS50)","v":3},"FTE"]
[null,{"$f":"COUNT(E40:E50)","v":6},"Full Time",null,{"$f":"SUM(E40:E50)","v":6},"FTE",null,null,null,"Lorenz, Gary",null,"085460",1,"FTE",null,null,"Hoerner, Gaylen",null,"085250",1,"FTE",null,null,null,null,"243-2183","087300",1,"FTE",null,null,null,null,null,null,"243-6043","083900",1,"FTE",null,null,null,"Alvernaz, Mike",null,"083700",1,"FTE",null,null,null,null,null,"243-6103",null,null,null,null,null,null,"Mail Service"]
[null,"Part Time",null,null,null,null,null,null,null,"Manweiler, Christina",null,"085260",1,"FTE",null,null,"Hubbard, Brianna",null,"085310",1,"FTE",null,null,null,{"$f":"SUM(Y65+Y73+Y79+AB52)","v":12},"Employees",null,{"$f":"SUM(AB65+AB73+AB79+AB52)","v":10.199999999999999},"FTE",null,null,null,null,null,{"$f":"SUM(AI61+AL52)","v":3},"Employees",null,{"$f":"SUM(AL61+AL52)","v":3},"FTE",null,null,null,{"$f":"+AT52","v":1},"Employees",null,{"$f":"+AT52","v":1},"FTE",null,null,null,null,{"$f":"SUM(AZ65+BC51)","v":4},"Employees",null,{"$f":"SUM(BC65+BC51)","v":4},"FTE",null,null,null,"Manager"]
[null,null,null,null,null,null,null,null,null,"Morgenthaler, Greg",null,"086200",1,"FTE",null,null,"Lewis, Curtis",null,"116480",1,"FTE",null,null,null,null,null,null,null,null,null,null,null,null,null,null,null,null,null,null,null,null,null,null,null,null,null,null,null,null,null,null,null,null,null,null,null,null,null,null,"Clark, Dan",null,null,null,null,null,null,null,"Computer Maintenance"]
[null,"Vickery, Jesse",null,"097900",0.75,"FTE",null,null,null,"Novakovitch, Joe",null,"085600",1,"FTE",null,null,"Merritt, Russell",null,"086960",1,"FTE",null,null,null,null,null,null,null,null,null,null,null,null,null,"Painters",null,null,null,null,null,null,null,null,null,null,null,null,null,null,null,null,"Project Managers",null,null,null,null,null,null,null,null,"243-2272","088700",1,"FTE",null,null,null,"Programmer/Analyst"]
[null,"Maintenance Worker I",null,null,null,null,null,null,null,"Perras, Gregory",null,"086970",1,"FTE",null,null,"Pennington, Larry",null,"086000",1,"FTE",null,null,null,"Full Time Groundskeepers",null,null,null,null,null,null,null,null,null,null,null,null,null,null,null,null,null,null,null,null,null,null,null,null,null,null,null,null,null,null,null,null,null,null,{"$f":"SUM(+BK55+BH67+BH76+BH81)","v":9},"Employees",null,{"$f":"SUM(+BK55+BK67+BK76+BK81)","v":5.85},"FTE",null,null,null,"Collins, Brad"]
[null,"Murphy, Casey",null,"097910",0.75,"FTE",null,null,null,"Santos, Doug",null,"086930",1,"FTE",null,null,"Price, Gerald",null,"085290",1,"FTE",null,null,null,null,null,null,null,null,null,null,null,null,null,"Federici, Rudy",null,"083800",1,"FTE",null,null,null,"Technical Services",null,null,null,null,null,null,null,null,"Ballas, Jerry",null,"910020",1,"FTE",null,null,null,null,null,null,null,null,null,null,null,null,"243-4506","081350",1,"FTE"]
[null,"Maintenance Worker I",null,null,null,null,null,null,null,"Smith, Charles",null,"086980",1,"FTE",null,null,"Sanders, Jason",null,"116500",1,"FTE",null,null,null,"Avery, Michael",null,"087080",1,"FTE",null,null,null,null,null,"Hemphill, Bill",null,"084050",1,"FTE",null,null,null,"Supervisor",null,null,null,null,null,null,null,null,"Project Manager - External Funding",null,null,null,null,null,null,null,null,null,null,null,null,null,null,null,{"$f":"SUM(+BS57+BP66)","v":2},"Employees",null,{"$f":"SUM(+BS57+BS66)","v":2},"FTE"]
[null,null,null,null,null,null,null,null,null,"Stevens, Glen",null,"086600",1,"FTE",null,null,"Satterfield, Todd",null,"085210",1,"FTE",null,null,null,"Fryberger, Mark",null,"087200",1,"FTE",null,null,null,null,null,null,null,null,null,null,null,null,null,"Hardwick, Dennis",null,null,null,null,null,null,null,null,null,null,null,null,null,null,null,null,"Mail Clerks"]
[null,{"$f":"COUNT(E55:E57)","v":2},"Part Time",null,{"$f":"SUM(E55:E57)","v":1.5},"FTE",null,null,null,"Tiffany, Tanya",null,"085320",1,"FTE",null,null,"Schindler, David",null,"085470",1,"FTE",null,null,null,"Mistrick, Roberta",null,"087040",1,"FTE",null,null,null,null,null,null,null,null,null,null,null,null,null,null,"243-6050","084400",1,"FTE",null,null,null,null,"Panisko, Mike",null,"910020",1,"FTE"]
[null,null,null,null,null,null,null,null,null,"Vacant (V-Logan)",null,"086010",1,"FTE",null,null,"Vacant (v-Snyder)",null,"085410",1,"FTE",null,null,null,"Potter, Gregg",null,"087010",1,"FTE",null,null,null,null,null,{"$f":"COUNT(AL57:AL58:AL59)","v":2},"Employees",null,{"$f":"SUM(AL57:AL58:AL59)","v":2},"FTE",null,null,null,{"$f":"SUM(AQ78+AT60)","v":7},"Employees",null,{"$f":"SUM(AT78+AT60)","v":7},"FTE",null,null,null,null,"Project Manager (.20 External Funding)",null,null,null,null,null,null,null,"Full Time",null,null,null,null,null,null,null,"Computer Support"]
[null,null,null,null,null,null,null,null,null,"Varner, Kenneth",null,"085200",1,"FTE",null,null,{"$f":"COUNT(T42:T61)","v":20},"Employees",null,{"$f":"SUM(T42:T61)","v":20},"FTE",null,null,null,"Rollins, Michael",null,"087100",1,"FTE",null,null,null,null,null,null,null,null,null,null,null,null,null,null,null,null,null,null,null,null,null,null,null,null,null,null,null,null,null,null,"Spencer, Richard",null,"088900",1,"FTE"]
[null,null,null,null,null,null,null,null,null,{"$f":"COUNT(M42:M61)","v":20},"Employees",null,{"$f":"SUM(M42:M62)","v":21},"FTE",null,null,null,null,null,null,null,null,null,null,"Stacey, Bradley",null,"087090",1,"FTE",null,null,null,null,null,null,null,null,null,null,null,null,null,null,null,null,null,null,null,null,null,null,"Plantz, Greg",null,"910020",1,"FTE",null,null,null,"Lead Worker",null,null,null,null,null,null,null,"Vacant",null,"081330",1,"FTE"]
[null,"Labor Crew",null,null,null,null,null,null,null,null,null,null,null,null,null,null,"Permanent Part Time (on call)",null,null,null,null,null,null,null,null,null,null,null,null,null,null,null,null,null,"Electricians",null,null,null,null,null,null,null,"HVAC Shop",null,null,null,null,null,null,null,null,"Project Manager - Asbestos",null,null,null,null,null,null,null,"Murphey, Colleen",null,"088500",1,"FTE",null,null,null,"Information System Specialist"]
[null,"Foreman",null,null,null,null,null,null,null,"Permanent Part Time (on call)",null,null,null,null,null,null,null,null,null,null,null,null,null,null,{"$f":"COUNT(AB56:AB64)","v":6},"Full Time",null,{"$f":"SUM(AB58:AB63)","v":6},"FTE",null,null,null,null,null,"Foreman",null,null,null,null,null,null,null,null,null,null,null,null,null,null,null,null,{"$f":"COUNT(BC57:BC64)","v":3},"Employees",null,{"$f":"SUM(BC57:BC64)","v":3},"FTE",null,null,null,"Scott, Ed",null,"088550",1,"FTE"]
[null,"Alva, Fidel \"Mick\"",null,null,null,null,null,null,null,null,null,null,null,null,null,null,"Magstadt, Melissa",null,"085330",0.5,"FTE",null,null,null,"Permanent Seasonal Groundskeepers",null,null,null,null,null,null,null,null,null,"Olson, Paul",null,null,null,null,null,null,null,"Goodrich, Dean",null,"084310",1,"FTE",null,null,null,null,null,null,null,null,null,null,null,null,null,null,null,null,null,null,null,null,{"$f":"COUNT(BS62:BS65)","v":1},"Employee",null,{"$f":"SUM(BS62:BS64)","v":1},"FTE"]
[null,null,"243-6042","087900",1,"FTE",null,null,null,"Holloway, Gary",null,"086250",0.5,"FTE",null,null,"Magstadt, Steve",null,"085240",0.5,"FTE",null,null,null,null,null,null,null,null,null,null,null,null,null,null,"243-6045","083200",1,"FTE",null,null,null,"Refrig. Tech/Plumber",null,null,null,null,null,null,null,null,null,null,null,null,null,null,null,null,{"$f":"COUNT(BK61:BK66)","v":3},"Employees",null,{"$f":"SUM(BK62:BK65)","v":3},"FTE"]
[null,{"$f":"SUM(B89+B84+E67)","v":7},"Employees",null,{"$f":"SUM(E67+E84+E89)","v":6.3},"FTE",null,null,null,"Shull, Bob",null,"085170",0.5,"FTE",null,null,null,null,null,null,null,null,null,null,"Coe, Christopher",null,"087030",0.75,"FTE",null,null,null,null,null,{"$f":"SUM(AI80+AL67)","v":7},"Employees",null,{"$f":"SUM(AL80+AL67)","v":7},"FTE",null,null,null,"Vacant",null,"084340",1,"FTE"]
[null,null,null,null,null,null,null,null,null,null,null,null,null,null,null,null,{"$f":"COUNT(T65:T68)","v":2},"Part Time",null,{"$f":"SUM(T65:T67)","v":1},"FTE",null,null,null,"Csorosz, Kristine",null,"087020",0.75,"FTE",null,null,null,null,null,null,null,null,null,null,null,null,null,"Refrig. Tech/Plumber",null,null,null,null,null,null,null,null,null,null,null,null,null,null,null,null,"Permanent Part-Time",null,null,null,null,null,null,null,"Vehicle Repair "]
[null,null,null,null,null,null,null,null,null,{"$f":"COUNT(M67:M68)","v":2},"Part Time",null,{"$f":"SUM(M67:M68)","v":1},"FTE",null,null,null,null,null,null,null,null,null,null,"Harrington, Justin",null,"087050",0.5,"FTE",null,null,null,null,null,null,null,null,null,null,null,null,null,"Otis, Don",null,"084250",1,"FTE",null,null,null,null,null,null,null,null,null,null,null,null,null,null,null,null,null,null,null,null,"Foreman"]
[null,"Full Time",null,null,null,null,null,null,null,null,null,null,null,null,null,null,null,null,null,null,null,null,null,null,"Wilson, Donald",null,"087000",0.75,"FTE",null,null,null,null,null,"Electricians",null,null,null,null,null,null,null,"Refrig. Tech/Plumber",null,null,null,null,null,null,null,null,null,null,null,null,null,null,null,null,"Lester, Vickie",null,"088350",0.15,"FTE",null,null,null,"Peterson, Bob"]
[null,null,null,null,null,null,null,null,null,null,null,null,null,null,null,null,"Student Custodial Supervisor I",null,null,null,null,null,null,null,null,null,null,null,null,null,null,null,null,null,null,null,null,null,null,null,null,null,"Gray, William",null,"084320",1,"FTE",null,null,null,null,null,null,null,null,null,null,null,null,"Stephens, Rick (on call)",null,"088420",0.3,"FTE",null,null,null,null,"243-6580","114750",1,"FTE"]
[null,"Brown, Jeff",null,"087800",1,"FTE",null,null,null,"Student Custodial Supervisor I",null,null,null,null,null,null,null,null,null,null,null,null,null,null,{"$f":"COUNT(AB67:AB71)","v":4},"Part Time",null,{"$f":"SUM(AB68:AB71)","v":2.75},"FTE",null,null,null,null,null,"Coyne, Jim",null,"083400",1,"FTE",null,null,null,"Refrig. Tech/Plumber",null,null,null,null,null,null,null,null,null,null,null,null,null,null,null,null,"Thomas, John  (on call)",null,"088450",0.2,"FTE",null,null,null,{"$f":"SUM(+BS72+BP82)","v":3},"Employees",null,{"$f":"SUM(+BS72+BS82)","v":3},"FTE"]
[null,"Equipment Operator",null,null,null,null,null,null,null,null,null,null,null,null,null,null,"Lamar, Romas",null,"086100",1,"FTE",null,null,null,null,null,null,null,null,null,null,null,null,null,"Harrison, Michael",null,"083280",1,"FTE",null,null,null,"McCoy, Bill",null,"087910",1,"FTE",null,null,null,null,null,null,null,null,null,null,null,null,"Kopp, Doug (on call)",null,"088400",0.2,"FTE"]
[null,"Vervanac, James",null,"087720",1,"FTE",null,null,null,"Pigman, John",null,"086400",1,"FTE",null,null,13,"Temp/Students",null,{"$f":"ROUND(+Q75/3.33,2)","v":3.9},"FTE",null,null,null,"Permanent Part Time",null,null,null,null,null,null,null,null,null,"Morlock, Chuck",null,"083250",1,"FTE",null,null,null,"Insulation Tech."]
[null,"Equipment Operator",null,null,null,null,null,null,null,12,"Temp/Students",null,{"$f":"ROUND(+J76/3.33,2)","v":3.6},"FTE",null,null,null,null,null,null,null,null,null,null,null,null,null,null,null,null,null,null,null,null,"O'Rourke, Malcom",null,"083320",1,"FTE",null,null,null,"Olson, Christine",null,"081130",1,"FTE",null,null,null,null,null,null,null,null,null,null,null,null,{"$f":"COUNT(BK71:BK74)","v":4},"Employees",null,{"$f":"SUM(BK71:BK74)","v":0.84999999999999987},"FTE",null,null,null,"Garage / Motor Pool"]
[null,"Horne, Donald",null,"087400",1,"FTE",null,null,null,null,null,null,null,null,null,null,"Student Custodial Supervisor I",null,null,null,null,null,null,null,"Fornall, Brian",null,"087070",0.45,"FTE",null,null,null,null,null,"Schaefer, Devin",null,"083270",1,"FTE",null,null,null,"Insulation Tech Lead Worker"]
[null,"Equipment Operator",null,null,null,null,null,null,null,"Student Custodial Supervisor I",null,null,null,null,null,null,null,null,null,null,null,null,null,null,null,null,null,null,null,null,null,null,null,null,"Morris, Stacy",null,"083300",1,"FTE",null,null,null,{"$f":"COUNT(AT64:AT77)","v":6},"Employees",null,{"$f":"SUM(AT66:AT77)","v":6},"FTE",null,null,null,null,null,null,null,null,null,null,null,null,"Central Receiving Clerk",null,null,null,null,null,null,null,"Gilbertson, Carl",null,"114650",1,"FTE"]
[null,"Beaty, Steve",null,"087700",1,"FTE",null,null,null,null,null,null,null,null,null,null,"Magstadt, Toby",null,"086950",1,"FTE",null,null,null,{"$f":"COUNT(AB77:AB78)","v":1},"Part Time",null,{"$f":"SUM(AB77:AB78)","v":0.45},"FTE",null,null,null,null,null,null,null,null,null,null,null,null,null,null,null,null,null,null,null,null,null,null,null,null,null,null,null,null,null,null,null,null,null,null,null,null,null,null,"Equip. Mechanic"]
[null,"Equipment Operator",null,null,null,null,null,null,null,"Lipnickey, Brad",null,"086800",1,"FTE",null,null,13,"Temp/Students",null,{"$f":"ROUND(+Q80/3.33,2)","v":3.9},"FTE",null,null,null,null,null,null,null,null,null,null,null,null,null,{"$f":"COUNT(AL72:AL79)","v":6},"Employees",null,{"$f":"SUM(AL73:AL78)","v":6},"FTE",null,null,null,null,null,null,null,null,null,null,null,null,null,null,null,null,null,null,null,null,"Hardin, Ben",null,"002110",1,"FTE",null,null,null,"Schmidt, Curtis",null,"114600",1,"FTE"]
[null,"Schmitt, William",null,"487600",1,"FTE",null,null,null,12,"Temp/Students",null,{"$f":"ROUND(+J81/3.33,2)","v":3.6},"FTE",null,null,null,null,null,null,null,null,null,null,null,null,null,null,null,null,null,null,null,null,null,null,null,null,null,null,null,null,null,null,null,null,null,null,null,null,null,null,null,null,null,null,null,null,null,{"$f":"COUNT(BK80)","v":1},"Employee",null,{"$f":"SUM(BK80)","v":1},"FTE",null,null,null,"Equip. Mechanic"]
[null,"Maintenance Worker",null,null,null,null,null,null,null,null,null,null,null,null,null,null,null,null,null,null,null,null,null,null,null,null,null,null,null,null,null,null,null,null,null,null,null,null,null,null,null,null,null,null,null,null,null,null,null,null,null,null,null,null,null,null,null,null,null,null,null,null,null,null,null,null,null,{"$f":"COUNT(BS78:BS80)","v":2},"Employees",null,{"$f":"SUM(BS78:BS81)","v":2},"FTE"]
[null,null,null,null,null,null,null,null,null,null,null,null,null,null,null,null,null,null,null,null,null,null,null,null,"Sustainability & Recycling",null,null,null,null,null,null,null,null,null,"Recycling "]
[null,{"$f":"COUNT(E71:E81)","v":5},"Full Time",null,{"$f":"SUM(E73:E81)","v":5},"FTE",null,null,null,null,null,null,null,null,null,null,null,null,null,null,null,null,null,null,"Sustainability Coordinator",null,null,null,null,null,null,null,null,null,"Recycling Coordinator"]
[null,"Permanent Part Time",null,null,null,null,null,null,null,null,null,null,null,null,null,null,null,null,null,null,null,null,null,null,"Peacock, Cherie",null,"New",1,"FTE",null,null,null,null,null,"Stan, Eduard",null,"081360",1,"FTE",null,null,null,null,null,null,null,null,null,null,null,null,null,null,null,null,null,null,null,null,null,null,null,null,null,null,null,null,"Transportation Services/Motor Pool"]
[]
[null,"Wandler, Don",null,"487620",0.3,"FTE",null,null,null,null,null,null,null,null,null,null,null,null,null,null,null,null,null,null,{"$f":"+Y92+AB85+AI87","v":11},"Employees",null,{"$f":"+AB85+AB92+AL87","v":4.95},"FTE",null,null,null,null,null,{"$f":"+AI89+AL85","v":8},"Employees",null,{"$f":"+AL85+AL89","v":3.1},"FTE",null,null,null,null,null,null,null,null,null,null,null,null,null,null,null,null,null,null,null,null,null,null,null,null,null,null,null,null,"Sharp, Michael",null,"114700",1,"FTE"]
[null,null,null,null,null,null,null,null,null,null,null,null,null,null,null,null,null,null,null,null,null,null,null,null,null,null,null,null,null,null,null,null,null,null,"Student Recycling"]
[null,{"$f":"COUNT(E87:E87)","v":1},"Part Time",null,{"$f":"SUM(E87:E87)","v":0.3},"FTE",null,null,null,null,null,null,null,null,null,null,null,null,null,null,null,null,null,null,"Student Interns",null,null,null,null,null,null,null,null,null,7,"Students/Temp.",null,{"$f":"ROUND(+AI89/3.33,2)","v":2.1},"FTE",null,null,null,null,null,null,null,null,null,null,null,null,null,null,null,null,null,null,null,null,null,null,null,null,null,null,null,null,{"$f":"COUNT(BS85:BS88)","v":1},"Employee",null,{"$f":"SUM(BS87:BS88)","v":1},"FTE"]
[null,null,null,null,null,null,null,null,null,null,null,null,null,null,null,null,null,null,null,null,null,null,null,null,"ASUM Intern",null,null,0.35,"FTE"]
[null,null,null,null,null,null,null,null,null,null,null,null,null,null,null,null,null,null,null,null,null,null,null,null,"Facilities Services Intern",null,null,0.5,"FTE"]
[null,null,null,null,null,null,null,null,null,null,null,null,null,null,null,null,null,null,null,null,null,null,null,null,{"$f":"COUNT(AB90:AB91)","v":2},"Student Interns",null,{"$f":"SUM(AB90:AB91)","v":0.85},"FTE"]